Cogmind - Beta 11 @@@ ROGUE MODE // 2022.03.30 @ 12:37:11 Player: Happytimes Result: Self-destructed Performance ------------- Evolutions (1) 500 Regions Visited (2) 400 Robots Destroyed (16) 80 Value Destroyed (516) 516 Prototype IDs (0) 0 Alien Tech Used (0) 0 Bonus (0) 0 TOTAL SCORE: 1496 Bonus ------- None Cogmind --------- Core Integrity 332/400 Matter 276/300 Energy 160/160 System Corruption 0% Temperature Cool (0) Movement Hovering (180) Ox2 Location -9/Materials Parts ------- > --- POWER (1) -------- Light Nuclear Core > --- PROPULSION (3) --- Improved Hover Unit > --- UTILITY (3) ------ Small Storage Unit Sensor Array > --- WEAPON (2) ------- Shotgun Shotgun > --- INVENTORY (8) ---- Improved Ion Engine Improved Heat Sink Medium Storage Unit Shotgun Grenade Launcher Peak State ------------ > --- POWER ------------ Light Nuclear Core > --- PROPULSION ------- Hover Unit Hover Unit Improved Hover Unit > --- UTILITY ---------- Small Storage Unit Sensor Array > --- WEAPON ----------- Shotgun Shotgun > --- INVENTORY -------- Light Ion Engine Improved Ion Engine Hover Unit Improved Heat Sink Medium Storage Unit Shotgun Grenade Launcher [Rating: 14] Favorites ----------- Power Light Ion Engine Engine Light Ion Engine Power Core Light Nuclear Core Propulsion Hover Unit Wheel Wheel Hover Unit Hover Unit Utility Small Storage Unit Device Sensor Array Storage Small Storage Unit Weapon Shotgun Energy Gun Medium Laser Ballistic Gun Shotgun Ballistic Cannon Light Cannon Build | -11 -10 -9 ------- Run | Scr Mat Mat Slots Evolved 2 | . . 2 Power . | . . . Propulsion 1 | . . 1 Utility 1 | . . 1 Weapon . | . . . Parts Attached 17 | 6 6 5 Power 3 | 1 . 2 Engine 1 | 1 . . Core 2 | . . 2 Reactor . | . . . Propulsion 6 | 2 2 2 Treads . | . . . Leg . | . . . Wheel 2 | 2 . . Hover 4 | . 2 2 Flight . | . . . Utility 2 | 1 1 . Device 1 | . 1 . Storage 1 | 1 . . Processor . | . . . Hackware . | . . . Protection . | . . . Artifact . | . . . Weapon 6 | 2 3 1 Energy Gun 3 | 2 1 . Energy Cannon . | . . . Ballistic Gun 2 | . 1 1 Ballistic Cannon 1 | . 1 . Launcher . | . . . Special Weapon . | . . . Impact Weapon . | . . . Slashing Weapon . | . . . Piercing Weapon . | . . . Special Melee Weapon . | . . . Unidentified Prototypes . | . . . Parts Lost 4 | . 1 3 Power . | . . . Propulsion 3 | . . 3 Utility . | . . . Weapon 1 | . 1 . Highest Loss Streak 2 | . 1 2 To Critical Strikes . | . . . Average Slot Usage (%) 79 | . 83 75 Engine 7 | . 14 . Core 4 | . . 10 Wheel 9 | . 18 . Hover 14 | . 9 20 Device 7 | . 5 11 Storage 12 | . 14 11 Energy Gun 5 | . 10 . Ballistic Gun 11 | . 2 21 Ballistic Cannon 4 | . 8 . Naked Turns . | . . . Heaviest Build 17 | 12 14 17 Greatest Support 26 | 26 26 19 Greatest Overweight (x) 2 | . . 2 Average Overweight (x) . | . . . Largest Inventory Capacity 8 | 8 8 8 Average Capacity 7 | 6 8 8 Most Carried 8 | 5 8 8 Average Carried 4 | 1 4 5 Final Capacity 8 | 8 8 8 Final Carried 8 | . 8 5 Class Distribution -------------------- 89% | Mutant 10% | Scavenger-Mutant Dominant Class ---------------- Mutant | -10/Materials Mutant | -9/Materials Resources | -11 -10 -9 ----------- Run | Scr Mat Mat Matter Collected 590 | 247 172 171 Remotely . | . . . Salvage Created 542 | . 239 303 Parts 36 | . 20 16 Haulers Intercepted 1 | . . 1 Recyclers Shooed 1 | . 1 . Parts Field Recycled . | . . . Retrieved Matter . | . . . Parts Self-Destructed . | . . . Prevented . | . . . Kills | -11 -10 -9 ------- Run | Scr Mat Mat Combat Hostiles Destroyed 12 | . 6 6 Guns 6 | . . 6 Cannons 5 | . 5 . AOE 1 | . 1 . Classes Destroyed 5 | . 3 2 Hauler 1 | . . 1 Operator 1 | . 1 . Watcher 2 | . 2 . Grunt 10 | . 6 4 Sentry 2 | . . 2 Best Kill Streak 4 | . 3 4 Combat Bots Only 4 | . 3 4 Max Kills in Single Turn 2 | . 1 2 Gunslinging 1 | . . 1 Exploded 1 | . 1 . Melee . | . . . Uniques/NPCs Destroyed . | . . . Combat | -11 -10 -9 -------- Run | Scr Mat Mat Damage Taken 713 | . 336 377 Core 235 | . 167 68 Absorbed by Shields . | . . . Core Remaining (%) 66 | 100 33 . Volleys Fired 47 | . 27 20 Largest 2 | . 2 2 Hottest 90 | . 90 46 Shots Fired 84 | . 44 40 Gun 60 | . 20 40 Cannon 24 | . 24 . Launcher . | . . . Special . | . . . Kinetic 66 | . 26 40 Thermal 8 | . 8 . Explosive . | . . . Electromagnetic 10 | . 10 . Robot Hit Streak 7 | . 6 7 Robot Miss Streak 10 | . 2 10 Penetration Max . | . . . Secondary Targets 1 | . . 1 Max Gunslinging Chain 1 | . . 1 Shots Hit Robots 57 | . 30 27 Core Hits 27 | . 13 14 Critical Kills 1 | . . 1 Critical Parts Destroyed . | . . . Critical Strikes 3 | . 2 1 Destroy 1 | . . 1 Blast 2 | . 2 . Melee Attacks . | . . . Impact . | . . . Slashing . | . . . Piercing . | . . . Sneak Attacks . | . . . Combat Hostiles . | . . . Follow-up Attacks . | . . . Damage Inflicted 958 | . 559 399 Guns 569 | . 170 399 Cannons 281 | . 281 . Explosions 108 | . 108 . Melee . | . . . Ramming . | . . . Kinetic 702 | . 303 399 Thermal 159 | . 159 . Explosive . | . . . Electromagnetic 97 | . 97 . Impact . | . . . Slashing . | . . . Piercing . | . . . Highest Corruption . | . . . Average Corruption . | . . . Corruption Purged . | . . . Corruption Blocked . | . . . Overload Shots . | . . . Overflow Damage 1 | . 1 . Projectiles . | . . . Explosions 1 | . 1 . Melee . | . . . Knockbacks 3 | . 3 . Impact . | . . . Kinetic 2 | . 2 . Secondary 1 | . 1 . Self-Inflicted Damage 46 | . 46 . Shots 2 | . 2 . Rammed . | . . . Targets Rammed . | . . . Kicked . | . . . Crushed . | . . . Highest Temperature 171 | . 171 6 Average Temperature 58 | . 69 3 Received Heat Transfer 282 | . 177 105 Siege Activations . | . . . Robots Corrupted . | . . . Combat Hostiles . | . . . Parts Fried . | . . . Impact Corruptions . | . . . Robots Melted . | . . . Combat Hostiles . | . . . Parts Melted . | . . . Heat Transferred 348 | . 348 . Parts Sabotaged . | . . . Parts Stolen . | . . . Parts Stripped . | . . . Power Chain Reactions 2 | . 2 . Missiles Intercepted . | . . . Alert | -11 -10 -9 ------- Run | Scr Mat Mat Peak Influence 267 | . 262 267 Initial 110 | . . 110 Average 177 | . 153 228 Maximum Alert Level 1 | . 1 1 Low Security (%) 42 | 100 58 17 Level 1 57 | . 41 82 Level 2 . | . . . Level 3 . | . . . Level 4 . | . . . Level 5 . | . . . High Security . | . . . Max Security . | . . . Squads Dispatched 3 | . 2 1 Investigation 1 | . 1 . Extermination . | . . . Reinforcement 2 | . 1 1 Assault . | . . . Garrison . | . . . Intercept . | . . . Searches Triggered . | . . . Construction Impeded . | . . . Haulers Reinforced . | . . . Active Scanning Responses . | . . . Cargo Convoy Interrupts . | . . . Stealth | -11 -10 -9 --------- Run | Scr Mat Mat Distress Signals 4 | . . 4 Communications Jammed . | . . . Distress Signals . | . . . Times Spotted 25 | . 14 11 Peak Tracking Total 5 | . 5 5 Tactical Retreats 1 | . 1 . Traps | -11 -10 -9 ------- Run | Scr Mat Mat Traps Triggered 2 | . . 2 Indirectly . | . . . Trap Hack Attempts . | . . . Triggered . | . . . Disarmed . | . . . Reprogrammed . | . . . Reused . | . . . Traps Extracted . | . . . Installed . | . . . Triggered . | . . . Machines | -11 -10 -9 ---------- Run | Scr Mat Mat Machines Disabled 1 | . 1 . Max in Single Turn 1 | . 1 . Machines Sabotaged . | . . . Garrisons Compromised . | . . . Overloaded Fab Kills . | . . . Hacking | -11 -10 -9 --------- Run | Scr Mat Mat Machines Accessed 5 | . 4 1 Terminals 5 | . 4 1 Fabricators . | . . . Repair Stations . | . . . Recycling Units . | . . . Scanalyzers . | . . . Garrison Access . | . . . Total Hacks 13 | . 11 2 Successful 7 | . 6 1 Failed 6 | . 5 1 Catastrophic . | . . . Database Lockouts . | . . . Manual . | . . . Terminals 13 | . 11 2 Fabricators . | . . . Repair Stations . | . . . Recycling Units . | . . . Scanalyzers . | . . . Garrison Access . | . . . Terminal Hacks 7 | . 6 1 Emergency Access Points 2 | . 2 . Alert Level 1 | . 1 . Locate Traps 1 | . 1 . Hauler Manifests 1 | . . 1 Zone Layout 2 | . 2 . Fabricator Hacks . | . . . Repair Station Hacks . | . . . Recycling Unit Hacks . | . . . Scanalyzer . | . . . Garrison Access Hacks . | . . . Unauthorized Hacks . | . . . Terminals . | . . . Fabricators . | . . . Repair Stations . | . . . Recycling Units . | . . . Scanalyzers . | . . . Garrison Access . | . . . Data Cores Recovered . | . . . Used . | . . . Hacking Detections 5 | . 4 1 Full Trace Events 1 | . 1 . Feedback Events . | . . . Feedback Blocked . | . . . Robot Schematics Acquired . | . . . Robots Built . | . . . Authchips . | . . . Time . | . . . Total Robot Build Rating . | . . . Part Schematics Acquired . | . . . Parts Built . | . . . Authchips . | . . . Time . | . . . Total Part Build Rating . | . . . Parts Repaired . | . . . Time . | . . . Parts Recycled . | . . . Recycled Matter . | . . . Retrieved Matter . | . . . Retrieved Components . | . . . Parts Scanalyzed . | . . . Part Schematics Acquired . | . . . Parts Damaged . | . . . Bothacking | -11 -10 -9 ------------ Run | Scr Mat Mat Used RIF Installer . | . . . Robots Hacked . | . . . Non-combat . | . . . Combat . | . . . Robot Hacks Applied . | . . . Relay Couplers Released . | . . . Fabnet Peak Effective % . | . . . Robots Rewired . | . . . Allies Hacked . | . . . Hacks Repelled . | . . . Allies | -11 -10 -9 -------- Run | Scr Mat Mat Total Allies . | . . . Largest Group . | . . . Highest-Rated Group . | . . . Highest-Rated Ally . | . . . Total Orders . | . . . Ally Attacks . | . . . Total Damage . | . . . Kills . | . . . Allies Corrupted . | . . . Allies Melted . | . . . Intel | -11 -10 -9 ------- Run | Scr Mat Mat Robot Analysis Total . | . . . Derelict Logs Recovered . | . . . Drone Launches . | . . . Drone Recoveries . | . . . Exploration | -11 -10 -9 ------------- Run | Scr Mat Mat Turns Passed 727 | 43 363 321 Spaces Moved 646 | 46 356 244 Core 23 | 23 . . Treads . | . . . Legs . | . . . Wheels 178 | 23 155 . Hover 445 | . 201 244 Flight . | . . . Fastest Speed 50 | 50 56 52 Average Speed 82 | 70 70 100 Slowest Speed 180 | 90 90 180 Overloaded Moves . | . . . Propulsion Burnouts . | . . . Robots Hopped . | . . . Cave-ins Triggered . | . . . Exploration Rate (%) 31 | 4 62 27 Regions Visited 2 Branch Regions . Pre-discovered Areas . | . . . Known Exits Taken . | . . . Unknown Exits Taken 2 | 1 1 . Scrap Searched . | . . . Spaces Dug . | . . . Terrain Destroyed 3 | . 3 . Melee . | . . . Projectile . | . . . AOE 3 | . 3 . Terrain Rammed . | . . . Walls Destroyed . | . . . Machines Disabled . | . . . Actions | -11 -10 -9 --------- Run | Scr Mat Mat Total 758 | 56 424 278 Wait 23 | . 17 6 Move 644 | 45 355 244 Hop . | . . . Pick Up 19 | 5 13 1 Fast Attach 3 | 1 1 1 Attach 11 | 5 4 2 Detach 1 | . 1 . Swap 3 | . 1 2 Drop 7 | . 5 2 Fire 47 | . 27 20 Melee . | . . . Ram . | . . . Kick . | . . . Crush . | . . . Escape Stasis . | . . . Rewire . | . . . Trap . | . . . Miscellaneous . | . . . Route ------- -11/Scrapyard -10/Materials (discovered 2 exits: *Mat x2) -9/Materials History --------- Turn | Location | Event 14 | -11/Scrapyard | Discovered new exit (range 15) 44 | -11/Scrapyard | Entered Materials 212 | -10/Materials | Core integrity fell below 50% 296 | -10/Materials | Discovered new exit (range 11) 305 | -10/Materials | Build established: Mutant 392 | -10/Materials | Discovered new exit (range 15) 407 | -10/Materials | Entered another Materials area 407 | -9/Materials | Evolved 2 slots: Propulsion x1, Utility x1 728 | -9/Materials | Self-destructed Last Messages --------------- 00517_ Hover Unit destroyed. 00520_ Y-45 Defender destroyed. 00524_ Acquired 46 matter. 00584_ K-01 Serf collects debris. 00612_ Hover Unit destroyed. 00615_ G-34 Mercenary destroyed. 00616_ K-01 Serf collects debris. 00620_ Acquired 21 matter. 00620_ K-01 Serf collects debris. 00632_ R-06 Scavenger collects Ion Engine. 00632_ R-06 Scavenger collects Imp. Ion Engine. 00635_ R-06 Scavenger collects Hvy. Assault Rifle. 00644_ K-01 Serf cleans the Fusion Modulator. 00652_ Triggered Explosive Trap. 00652_ An explosion rips through the floor. 00669_ A-02 Transporter destroyed. 00670_ K-01 Serf collects debris. 00671_ R-06 Scavenger collects Visual Processing Unit. 00674_ R-06 Scavenger collects Lgt. Treads. 00675_ K-01 Serf collects debris. Map ----- +----------------------------------------------------+ | #???????????????????????????????????????? | | ###?????????????????????????????????????? | | +##### #?????????????????????????????????????? | | #?????????????????????????????????????? | | !!! ##?????????????????????????????????????? | | !%! #??????????????????????????????????????? | | """# #####??????????????????????????????????? | | """# # #??????????????????????????????????? | | """# # #??????????????????????????????????? | | """# # #??????????????????????????????????? | | ?# # #??????????????????????????????????? | | ?# # #??????????????????????????????????? | | ####?# # #??????????????????????????????????? | | ?????# # ###########????????????????????????? | | ?????# # ## #????????????????????????? | | ???### # ## """ #????????????????????????? | | #### ##+#### """ #????????????????????????? | | ## """ #????????????????????????? | | ^ / #????????????????????????? | | ^ [ ## """ #????????????????????????? | | #### ! ## """ #????????????????????????? | | ???##^! ## """ #????????????????????????? | | ????#!!% """ ## #????????????????????????? | | ????#!! """ ########+######+########???????????? | | ????# """ r ????????? | | ????# @ w Y????????? | | ????# r k t k ????????? | | ????# #####################/#########??????????? | | ????# +????????????????????? ?????????????????? | | ????# #???????????????????????" ???????????????? | | ????# #???????????????????????? #??????????????? | | ????# #????????????????????????????????????????? | | ????# #????????????????????????????????????????? | | ????+ #????????????????????????????????????????? | | ????# ?????????????????????????????????????????? | | ????# ?????????????????????????????????????????? | | ???? ?????????????????????????????????????????? | | ????? ?????????????????????????????????????????? | | ?????????????????????????????????????????????????? | | ?????????????????????????????????????????????????? | | ?????????????????????????????????????????????????? | | ?????????????????????????????????????????????????? | | ?????????????????????????????????????????????????? | | ?????????????????????????????????????????????????? | | ?????????????????????????????????????????????????? | | ?????????????????????????????????????????????????? | | ?????????????????????????????????????????????????? | | ?????????????????????????????????????????????????? | | ?????????????????????????????????????????????????? | | ?????????????????????????????????????????????????? | +----------------------------------------------------+ Best States ------------- Heat Dissipation 28 Energy Generation 14 Energy Capacity 160 Matter Stores 300 Matter Capacity 300 Sight Range 16 Robot Scan Range 14 Terrain Scan Density 10 Evasion (%) 54 Item Schematics ----------------- None Robot Schematics ------------------ None Fabricated ------------ Nothing Alien Tech Used ----------------- None Achievements -------------- None Challenges ------------ None Game ------ Seed SensorThrowingRail Manual? 0 Play Time 00:08:26 Cumulative 45.3 hours Start 2022.03.30 @ 12:16:02 End 2022.03.30 @ 12:37:11 Sessions 1 Manual Loads 0 Difficulty Rogue Special Mode None Game No. 135 Rogue 135 Adventurer 0 Explorer 0 Win Type - Total 0 Types 0/0/0/0/0/0/0/0/0 Lore% 32 Gallery% 46 Achievement% 37 Wizard Run 0 Options --------- ASCII 0 Keyboard 0 Movement Mouse Keybinds 0 Fullscreen 1 Font 18/SmallcapsGlow Map View 76x50 Tactical HUD 1 Map Filters NONE Filters NONE Steam 1 RUN: ab292380-5a83-4fac-a884-8a09f2556141